Cogmind - Beta 14 @@@ ROGUE MODE // 2025.01.06 @ 21:58:21 Player: nixerot Result: Destroyed self with Long-range Missile Launcher Performance ------------- Evolutions (3) 1500 Regions Visited (5) 1000 Robots Destroyed (40) 200 Value Destroyed (1170) 1170 Prototype IDs (12) 240 Alien Tech Used (0) 0 Bonus (0) 0 TOTAL SCORE: 4110 Bonus ------- None Cogmind --------- Core Integrity 0/700 Matter 232/450 Energy 100/100 System Corruption 2% Temperature Cool (0) Movement Core (200) Ox3 Location -7/Lower Caves Parts ------- > --- POWER (2) -------- (None) > --- PROPULSION (4) --- (None) > --- UTILITY (4) ------ Compact Matter Pod Trap Scanner > --- WEAPON (3) ------- Long-range Missile Launcher > --- INVENTORY (5) ---- Disposable Heat Sink Heavy Armor Plating Peak State ------------ > --- POWER ------------ Deuterium Engine Light Deuterium Engine > --- PROPULSION ------- Carbon-fiber Leg Carbon-fiber Leg Cooled VTOL Module > --- UTILITY ---------- Trap Scanner Targeting Computer Hardlight Generator > --- WEAPON ----------- Improved EM Pulse Cannon Ion Cannon Improved Assault Rifle > --- INVENTORY -------- Improved Heat Sink Disposable Heat Sink Heavy Armor Plating [Rating: 35] Favorites ----------- Power Light Ion Engine Engine Light Ion Engine Power Core Light Nuclear Core Propulsion Light Treads Treads Light Treads Leg Carbon-fiber Leg Hover Unit Gravmag System Flight Unit Cooled VTOL Module Utility Targeting Computer Device Improved Heat Sink Storage Compact Matter Pod Processor Targeting Computer Protection Reflective Plating Weapon Assault Rifle Energy Gun Particle Gun Energy Cannon Ion Cannon Ballistic Gun Assault Rifle Launcher Long-range Missile Launcher Special Weapon Plasma Cutter Special Melee Weapon Datajack Build | -11 -10 -9 -8 -7 -7 ------- Run | Yrd Mat Mat Mat Fac Low Slots Evolved 6 | . . 2 2 2 . Power 1 | . . 1 . . . Propulsion 2 | . . . 2 . . Utility 2 | . . 1 . 1 . Weapon 1 | . . . . 1 . Parts Attached 52 | 5 15 13 7 4 8 Power 9 | 1 2 4 2 . . Engine 8 | 1 1 4 2 . . Core 1 | . 1 . . . . Reactor . | . . . . . . Propulsion 8 | 2 . 4 . 1 1 Treads 4 | 2 . 2 . . . Leg 2 | . . 2 . . . Wheel . | . . . . . . Hover 1 | . . . . . 1 Flight 1 | . . . . 1 . Utility 11 | . 4 2 1 . 4 Device 7 | . 2 2 1 . 2 Storage 1 | . . . . . 1 Processor 2 | . 2 . . . . Hackware . | . . . . . . Protection 1 | . . . . . 1 Artifact . | . . . . . . Weapon 24 | 2 9 3 4 3 3 Energy Gun 7 | 1 2 3 . 1 . Energy Cannon 4 | . . . 1 2 1 Ballistic Gun 8 | 1 5 . 2 . . Ballistic Cannon . | . . . . . . Launcher 2 | . . . . . 2 Special Weapon 1 | . . . 1 . . Impact Weapon . | . . . . . . Slashing Weapon . | . . . . . . Piercing Weapon . | . . . . . . Special Melee Weapon 2 | . 2 . . . . Unidentified Prototypes 2 | . . . 1 1 . Parts Lost 17 | . . 3 . 1 13 Power 2 | . . . . 1 1 Propulsion 5 | . . 2 . . 3 Utility 5 | . . . . . 5 Weapon 5 | . . 1 . . 4 Highest Loss Streak 7 | . . 1 . 1 7 To Critical Strikes . | . . . . . . Average Slot Usage (%) 79 | . 87 87 81 72 24 Engine 13 | . 10 18 18 11 . Core 1 | . 3 2 . . . Treads 15 | . 28 20 . . . Leg 4 | . . 1 18 15 1 Device 13 | . 11 13 18 15 10 Processor 7 | . 5 11 9 7 4 Energy Gun 10 | . 12 15 2 4 . Energy Cannon 2 | . . . 7 14 1 Ballistic Gun 8 | . 15 4 8 2 . Peak Build Rating 35 | 5 13 20 26 35 28 Average Rating 14 | 3 7 13 23 28 9 On Entrance 15 | . 5 13 19 26 28 Naked Turns . | . . . . . . Heaviest Build 38 | 9 12 22 30 38 13 Greatest Support 40 | 40 40 40 30 30 15 Greatest Overweight (x) 4 | . . 1 . 1 4 Average Overweight (x) . | . . . . . . Largest Inventory Capacity 5 | 5 5 5 5 5 5 Average Capacity 5 | 5 5 5 5 5 5 Most Carried 5 | 2 2 5 5 5 4 Average Carried 2 | 1 1 1 3 4 3 Final Capacity 5 | 5 5 5 5 5 5 Final Carried 4 | 1 1 3 4 4 3 Class Distribution -------------------- 62% | Mutant 27% | Scavenger-Mutant 9% | Gunner Dominant Class ---------------- Mutant | -10/Materials Scavenger-Mutant | -9/Materials Mutant | -8/Materials Gunner | -7/Factory Mutant | -7/Lower Caves Resources | -11 -10 -9 -8 -7 -7 ----------- Run | Yrd Mat Mat Mat Fac Low Matter Collected 988 | 208 327 194 156 1 102 Remotely . | . . . . . . Salvage Created 1235 | . 389 591 207 7 41 Parts 79 | . 27 36 10 2 4 Haulers Intercepted 1 | . 1 . . . . Recyclers Shooed . | . . . . . . Parts Field Recycled . | . . . . . . Retrieved Matter . | . . . . . . Parts Self-Destructed 1 | . . . . . 1 Prevented . | . . . . . . Kills | -11 -10 -9 -8 -7 -7 ------- Run | Yrd Mat Mat Mat Fac Low Combat Hostiles Destroyed 35 | . 11 15 4 . 5 Guns 27 | . 11 14 2 . . Cannons 2 | . . . 2 . . AOE 5 | . . . . . 5 Classes Destroyed 8 | . 3 4 . 1 . Worker 1 | . . . . 1 . Builder 1 | . . 1 . . . Hauler 1 | . 1 . . . . Watcher 2 | . . 1 . 1 . Swarmer 13 | . 3 5 . . 5 Grunt 14 | . 8 4 2 . . Brawler 1 | . . 1 . . . Sentry 7 | . . 5 2 . . Best Kill Streak 5 | . 3 5 2 2 5 Combat Bots Only 5 | . 3 4 2 . 5 Max Kills in Single Turn 3 | . 1 1 1 1 3 Gunslinging . | . . . . . . Exploded 3 | . . . . . 3 Melee . | . . . . . . Uniques/NPCs Destroyed . | . . . . . . Combat | -11 -10 -9 -8 -7 -7 -------- Run | Yrd Mat Mat Mat Fac Low Hostile Shots Fired 306 | . 43 92 22 . 149 Missed 111 | . 15 27 5 . 64 Damage Taken 2856 | . 284 773 211 187 1401 Core 891 | . 38 115 33 16 689 Absorbed by Shields 44 | . . . 44 . . Ignored by Resistances 4 | . . . . . 4 Core Remaining (%) 87 | 100 84 71 94 . . Volleys Fired 139 | . 51 54 19 4 11 Largest 3 | . 2 2 2 3 3 Hottest 184 | . 85 121 83 184 184 Shots Fired 249 | . 97 89 38 11 14 Gun 211 | . 97 89 19 4 2 Cannon 30 | . . . 19 7 4 Launcher 8 | . . . . . 8 Special . | . . . . . . Kinetic 97 | . 56 22 19 . . Thermal 108 | . 30 55 19 3 1 Explosive 8 | . . . . . 8 Electromagnetic 36 | . 11 12 . 8 5 Robot Hit Streak 14 | . 8 14 6 1 12 Robot Miss Streak 7 | . 5 6 2 7 . Penetration Max . | . . . . . . Secondary Targets 3 | . 1 2 . . . Max Gunslinging Chain 1 | . 1 1 . . . Shots Hit Robots 162 | . 61 65 23 2 11 Core Hits 69 | . 18 36 8 1 6 Critical Kills . | . . . . . . Critical Parts Destroyed . | . . . . . . Critical Strikes 4 | . . 4 . . . Burn 4 | . . 4 . . . Melee Attacks . | . . . . . . Impact . | . . . . . . Slashing . | . . . . . . Piercing . | . . . . . . Sneak Attacks . | . . . . . . Combat Hostiles . | . . . . . . Follow-up Attacks . | . . . . . . Damage Inflicted 3281 | . 853 902 431 378 717 Guns 1974 | . 853 902 199 . 20 Cannons 400 | . . . 232 74 94 Explosions 907 | . . . . 304 603 Melee . | . . . . . . Ramming . | . . . . . . Kinetic 927 | . 438 290 199 . . Thermal 1096 | . 344 496 232 . 24 Explosive 907 | . . . . 304 603 Electromagnetic 351 | . 71 116 . 74 90 Impact . | . . . . . . Slashing . | . . . . . . Piercing . | . . . . . . Highest Corruption 2 | . . . . . 2 Average Corruption 2 | . . . . . 2 Corruption Purged . | . . . . . . Corruption Blocked . | . . . . . . Effects 2 | . . . . . 2 Message Errors 1 | . . . . . 1 Data Loss (minor) 1 | . . . . . 1 Overload Shots . | . . . . . . Overflow Damage 278 | . . . . 163 115 Projectiles 19 | . . . . 19 . Explosions 259 | . . . . 144 115 Melee . | . . . . . . Knockbacks . | . . . . . . Impact . | . . . . . . Kinetic . | . . . . . . Secondary . | . . . . . . Self-Inflicted Damage 400 | . . . . 188 212 Shots 8 | . . . . 3 5 Rammed . | . . . . . . Targets Rammed . | . . . . . . Kicked . | . . . . . . Crushed . | . . . . . . Highest Temperature 298 | . 18 45 188 117 298 Average Temperature 52 | . 10 17 77 63 120 Received Heat Transfer 1041 | . 114 258 109 . 560 Siege Activations . | . . . . . . Robots Corrupted . | . . . . . . Combat Hostiles . | . . . . . . Parts Fried . | . . . . . . Impact Corruptions . | . . . . . . Robots Melted 1 | . . 1 . . . Combat Hostiles 1 | . . 1 . . . Parts Melted 10 | . 1 9 . . . Heat Transferred 2673 | . 814 1452 370 . 37 Parts Sabotaged . | . . . . . . Parts Stolen . | . . . . . . Parts Stripped . | . . . . . . Power Chain Reactions . | . . . . . . Alert | -11 -10 -9 -8 -7 -7 ------- Run | Yrd Mat Mat Mat Fac Low Peak Influence 312 | . 170 312 291 253 . Initial 132 | . . . 128 132 . Average 135 | . 69 178 188 190 . Maximum Alert Level 1 | . . 1 1 1 . Low Security (%) 77 | 100 100 63 65 53 . Level 1 22 | . . 36 34 46 . Level 2 . | . . . . . . Level 3 . | . . . . . . Level 4 . | . . . . . . Level 5 . | . . . . . . High Security . | . . . . . . Max Security . | . . . . . . Squads Dispatched 9 | . 4 3 1 1 . Investigation 4 | . 2 1 1 . . Extermination . | . . . . . . Reinforcement 5 | . 2 2 . 1 . Assault . | . . . . . . Garrison . | . . . . . . Intercept . | . . . . . . Searches Triggered . | . . . . . . Construction Impeded . | . . . . . . Haulers Reinforced . | . . . . . . Active Scanning Responses . | . . . . . . Cargo Convoy Interrupts . | . . . . . . Stealth | -11 -10 -9 -8 -7 -7 --------- Run | Yrd Mat Mat Mat Fac Low Distress Signals 3 | . 2 1 . . . Communications Jammed . | . . . . . . Distress Signals . | . . . . . . Times Spotted 60 | . 13 20 4 2 21 Peak Tracking Total 10 | . 3 5 2 1 10 Tactical Retreats 7 | . . 2 . . 5 Traps | -11 -10 -9 -8 -7 -7 ------- Run | Yrd Mat Mat Mat Fac Low Traps Triggered 1 | . 1 . . . . Indirectly . | . . . . . . Trap Hack Attempts . | . . . . . . Triggered . | . . . . . . Disarmed . | . . . . . . Reprogrammed . | . . . . . . Reused . | . . . . . . Traps Extracted . | . . . . . . Installed . | . . . . . . Triggered . | . . . . . . Machines | -11 -10 -9 -8 -7 -7 ---------- Run | Yrd Mat Mat Mat Fac Low Machines Disabled 5 | . . . . 4 1 Max in Single Turn 2 | . . . . 2 1 Machines Repaired . | . . . . . . Machines Dismantled . | . . . . . . Machines Sabotaged . | . . . . . . Overloaded Fab Kills . | . . . . . . Hacking | -11 -10 -9 -8 -7 -7 --------- Run | Yrd Mat Mat Mat Fac Low Machines Accessed 13 | . 3 4 5 . 1 Terminals 11 | . 3 4 4 . . Fabricators . | . . . . . . Repair Stations . | . . . . . . Recycling Units 1 | . . . 1 . . Scanalyzers . | . . . . . . Garrison Access . | . . . . . . Total Hacks 35 | . 8 11 15 . 1 Successful 19 | . 3 8 7 . 1 Failed 16 | . 5 3 8 . . Catastrophic 1 | . . . 1 . . Database Lockouts . | . . . . . . Manual . | . . . . . . Terminals 31 | . 8 11 12 . . Fabricators . | . . . . . . Repair Stations . | . . . . . . Recycling Units 3 | . . . 3 . . Scanalyzers . | . . . . . . Garrison Access . | . . . . . . Terminal Hacks 17 | . 3 8 5 . 1 Record 7 | . . 4 3 . . Prototype ID Bank 6 | . 2 2 2 . . Open Door 1 | . . . . . 1 Alert Level 1 | . . 1 . . . Dispatch Records 1 | . 1 . . . . Investigation Status 1 | . . 1 . . . Fabricator Hacks . | . . . . . . Repair Station Hacks . | . . . . . . Recycling Unit Hacks 2 | . . . 2 . . Report Inventory 1 | . . . 1 . . Retrieve Components 1 | . . . 1 . . Scanalyzer . | . . . . . . Garrison Access Hacks . | . . . . . . Unauthorized Hacks . | . . . . . . Terminals . | . . . . . . Fabricators . | . . . . . . Repair Stations . | . . . . . . Recycling Units . | . . . . . . Scanalyzers . | . . . . . . Garrison Access . | . . . . . . Data Cores Recovered . | . . . . . . Used . | . . . . . . Hacking Detections 9 | . 1 3 5 . . Full Trace Events 2 | . . 1 1 . . Feedback Events . | . . . . . . Feedback Blocked . | . . . . . . Robot Schematics Acquired . | . . . . . . Robots Built . | . . . . . . Authchips . | . . . . . . Time . | . . . . . . Total Robot Build Rating . | . . . . . . Part Schematics Acquired . | . . . . . . Parts Built . | . . . . . . Authchips . | . . . . . . Time . | . . . . . . Total Part Build Rating . | . . . . . . Parts Repaired . | . . . . . . Time . | . . . . . . Parts Recycled . | . . . . . . Recycled Matter . | . . . . . . Retrieved Matter . | . . . . . . Retrieved Components 2 | . . . 2 . . Parts Scanalyzed . | . . . . . . Part Schematics Acquired . | . . . . . . Parts Damaged . | . . . . . . Bothacking | -11 -10 -9 -8 -7 -7 ------------ Run | Yrd Mat Mat Mat Fac Low Used RIF Installer . | . . . . . . Robots Hacked . | . . . . . . Non-combat . | . . . . . . Combat . | . . . . . . Robot Hacks Applied . | . . . . . . Relay Couplers Released . | . . . . . . Fabnet Peak Effective % . | . . . . . . Robots Rewired . | . . . . . . Allies Hacked . | . . . . . . Hacks Repelled . | . . . . . . Allies | -11 -10 -9 -8 -7 -7 -------- Run | Yrd Mat Mat Mat Fac Low Total Allies . | . . . . . . Largest Group . | . . . . . . Highest-Rated Group . | . . . . . . Highest-Rated Ally . | . . . . . . Total Orders . | . . . . . . Ally Attacks . | . . . . . . Total Damage . | . . . . . . Kills . | . . . . . . Allies Corrupted . | . . . . . . Allies Melted . | . . . . . . Intel | -11 -10 -9 -8 -7 -7 ------- Run | Yrd Mat Mat Mat Fac Low Robot Analysis Total . | . . . . . . Derelict Logs Recovered . | . . . . . . Drone Launches . | . . . . . . Drone Recoveries . | . . . . . . Exploration | -11 -10 -9 -8 -7 -7 ------------- Run | Yrd Mat Mat Mat Fac Low Turns Passed 2346 | 59 806 691 368 234 188 Spaces Moved 1378 | 32 389 328 231 147 251 Core 199 | 2 . . . . 197 Treads 712 | 30 389 293 . . . Legs 415 | . . 35 231 147 2 Wheels . | . . . . . . Hover 52 | . . . . . 52 Flight . | . . . . . . Fastest Speed 50 | 50 160 120 120 120 50 Average Speed 132 | 153 160 156 120 142 58 Slowest Speed 250 | 160 160 240 120 190 250 Overloaded Moves . | . . . . . . Propulsion Burnouts . | . . . . . . Robots Hopped . | . . . . . . Cave-ins Triggered . | . . . . . . Exploration Rate (%) 28 | 4 55 44 25 5 37 Regions Visited 5 Branch Regions 1 Pre-discovered Areas . | . . . . . . Known Exits Taken . | . . . . . . Unknown Exits Taken 5 | 1 1 1 1 1 . Scrap Searched 2 | . . . . . 2 Spaces Dug . | . . . . . . Terrain Destroyed 182 | . . . 4 49 129 Melee . | . . . . . . Projectile 4 | . . . 4 . . AOE 178 | . . . . 49 129 Terrain Rammed . | . . . . . . Walls Destroyed . | . . . . . . Machines Disabled . | . . . . . . Actions | -11 -10 -9 -8 -7 -7 --------- Run | Yrd Mat Mat Mat Fac Low Total 1656 | 42 473 416 284 162 279 Wait 18 | . . . 13 3 2 Move 1373 | 31 388 327 230 146 251 Hop . | . . . . . . Pick Up 49 | 6 11 14 8 3 7 Fast Attach . | . . . . . . Attach 23 | 5 2 6 . 2 8 Detach . | . . . . . . Swap 29 | . 13 7 7 2 . Drop 25 | . 8 8 7 2 . Fire 139 | . 51 54 19 4 11 Melee . | . . . . . . Ram . | . . . . . . Kick . | . . . . . . Crush . | . . . . . . Escape Stasis . | . . . . . . Rewire . | . . . . . . Trap . | . . . . . . Miscellaneous . | . . . . . . Route ------- -11/Scrapyard -10/Materials (discovered 3 exits: *Mat x2 / [*Min]) -9/Materials -8/Materials -7/Factory -7/Lower Caves History --------- Turn | Location | Event 7 | -11/Scrapyard | Discovered new exit (range 16) 60 | -11/Scrapyard | Entered Materials 303 | -10/Materials | Discovered new exit (range 16) 312 | -10/Materials | Build established: Mutant 358 | -10/Materials | Discovered new exit (range 10) 818 | -10/Materials | Discovered new exit (range 14) 866 | -10/Materials | Entered another Materials area 866 | -9/Materials | Evolved 2 slots: Power x1, Utility x1 1398 | -9/Materials | Build established: Scavenger-Mutant 1523 | -9/Materials | Discovered new exit (range 15) 1557 | -9/Materials | Entered another Materials area 1557 | -8/Materials | Evolved 2 slots: Propulsion x2 1794 | -8/Materials | Build established: Mutant 1812 | -8/Materials | Discovered new exit (range 3) 1925 | -8/Materials | Entered Factory 1925 | -7/Factory | Evolved 2 slots: Utility x1, Weapon x1 2077 | -7/Factory | Discovered new exit (range 7) 2159 | -7/Factory | Entered Lower Caves 2161 | -7/Lower Caves | Attracted the attention of an 0b10 checkpoint 2210 | -7/Lower Caves | Lost 7 parts (1p2n1u3w) 2241 | -7/Lower Caves | Spotted B-75 Beast 2254 | -7/Lower Caves | Core integrity fell below 50% 2293 | -7/Lower Caves | Attracted the attention of an 0b10 outpost 2300 | -7/Lower Caves | Lost 3 parts (3u) 2326 | -7/Lower Caves | Core integrity fell below 20% 2347 | -7/Lower Caves | Destroyed self with Long-range Missile Launcher Last Messages --------------- Sealed Heavy Doors opened. 02314_ Acquired Lrn. Missile Launcher. 02317_ Acquired Imp. Reaction Control System. [Achievement: Let's See Who's Tougher] 02319_ S-27 Virus destroyed. 02319_ Gravmag System destroyed. 02319_ Destroyed Gravmag System. 02319_ S-27 Virus destroyed. 02321_ The unstable cave ceiling collapses. 02323_ Lrn. Missile Launcher destroyed. 02324_ Acquired Lrn. Missile Launcher. 02326_ Destroyed Lgt. Nuclear Core. 02326_ S-27 Virus destroyed. 02326_ WAR.Sys disabled. 02327_ Imp. Reaction Control System destroyed. 02328_ Destroyed VTOL Module. 02329_ Autogun fries itself beyond repair. 02331_ Destroyed Lgt. Nuclear Core. 02331_ S-27 Virus destroyed. 02336_ The unstable cave ceiling collapses. Map ----- +----------------------------------------------------+ | | | | | | | | | | | | | | | | | | | | | | | | | | | | | | | ?????????????????????????????????????????????????? | | ?????????????????????????????????????????????????? | | ?????????????????????????????????????????????????? | | ?????????????????????????????????????????????????? | | ???????????????????##????????????????????????????? | | ???????????????#?### #####???????????????????????? | | ???????????????# # #???????????????????????? | | ???????????????# ##??????????????????????? | | ???????????????# # #??????????????????????? | | ???????????????# #??????????????????????? | | ???????????????# @#??????????????????????? | | ???????????????## ?????????????????????? | | ???????????????# ##????????????????????? | | ???????????????# #?????????????????????? | | ???????????????# #?##??????????????????? | | ???????????????# # ##?????????????????? | | ??????????????# ##????????????????? | | ?????????????# b #????????????????? | | ?????????????# Y ### #????????????????? | | ?????????????# ##???? #????????????????? | | ?????????????? #????????????????????????? | | ?????????????? ##???????????????????????? | | ???????????????? ########????????????????? | | ????????????????# #?????????????? | | ????????????????# ####### ????????????? | | ????????????????# ## # #??????????????????????? | | ????????????????###?#### #???????????????????? ? | | ?????????????????????# #???????????????????? ? | | ?????????????????????# #???????????????????? ? | | ?????????????????????# ###???????????????????? ? | | ?????????????????????# #####???????????#?????? ? | | ????????????????#????# ## #????####?### ????? ? | | ????????????##### ??# ## ##???# ##? ???## ? | | ????????????# ?# ## ##### ##? ?? # | | ????????????# # ## ## #?# ## # | +----------------------------------------------------+ Best States ------------- Heat Dissipation 48 Coolant Potential 50 Energy Generation 23 Energy Capacity 325 Matter Stores 367 Matter Capacity 450 Sight Range 16 Terrain Scan Density 10 Evasion (%) 55 Targeting Accuracy 5 Recoil Reduction 2 Item Schematics ----------------- None Robot Schematics ------------------ None Fabricated ------------ Nothing Alien Tech Used ----------------- None Achievements -------------- Let's See Who's Tougher Challenges ------------ None Game ------ Seed TowerBraceTearclaws Manual? 0 Play Time 00:36:16 Cumulative 7.2 hours Start 2025.01.03 @ 15:54:35 End 2025.01.06 @ 21:58:21 Sessions 4 Manual Loads 0 Difficulty Rogue Special Mode None Game No. 9 Rogue 9 Adventurer 0 Explorer 0 Win Type - Total 0 Types 0/0/0/0/0/0/0/0/0 Lore% 4 Gallery% 14 Achievement% 17 Wizard Run 0 Options --------- Layout 1 ASCII 0 Keyboard 0 Movement Mouse Keybinds 0 Fullscreen 1 Font 32/SmallcapsGlow Map View 50x35 Zoom Use 0% Tactical HUD 1 Map Filters NONE Filters NONE Steam 1 RUN: 4860fb16-1874-4a12-b953-9b0d57f46261